fUST/lending_fUST_20241205
["ID","MTS","AMOUNT","RATE_DAILY","PERIOD"]
[344379078,1733393444510,-500.0,0.00022191,2]
[344379079,1733393444520,-500.0,0.00022191,2]
[344379080,1733393444529,-500.0,0.00022191,2]
[344379081,1733393444539,-500.0,0.00022191,2]
[344379082,1733393444549,-500.0,0.00022191,2]
[344379083,1733393444558,-507.87,0.00022191,10]
[344379084,1733393444570,-696.01,0.00022191,2]
[344379085,1733393444582,-569.36,0.00022191,2]
[344379086,1733393444594,-500.0,0.00022191,2]
[344379087,1733393444605,-633.54,0.00022191,2]
[344379088,1733393444617,-500.0,0.00022191,2]
[344379089,1733393444628,-500.0,0.00022191,2]
[344379090,1733393444639,-500.0,0.00022191,2]
[344379091,1733393444650,-500.0,0.00022191,2]
[344379092,1733393444660,-500.0,0.00022191,2]
[344379093,1733393444670,-500.0,0.00022191,2]
[344379094,1733393444681,-435.63669226,0.00022191,2]
[344379095,1733393444693,-500.0,0.00022191,2]
[344379096,1733393444704,-500.0,0.00022191,2]
[344379097,1733393444714,-500.0,0.00022191,2]
[344379098,1733393444725,-500.0,0.00022191,2]
[344379099,1733393444735,-500.0,0.00022191,2]
[344379100,1733393444746,-500.0,0.00022191,2]
[344379101,1733393444756,-2855.73,0.00022191,2]
[344379102,1733393444767,-500.0,0.00022191,2]
[344379103,1733393444778,-500.0,0.00022191,2]
[344379104,1733393444789,-500.0,0.00022191,2]
[344379105,1733393444800,-501.7902182,0.00022191,2]
[344379106,1733393444810,-500.0,0.00022191,2]
[344379107,1733393444820,-556.90267201,0.00022191,2]
[344379108,1733393444831,-524.036,0.00022191,2]
[344379109,1733393444842,-1008.88,0.00022191,2]
[344379110,1733393444853,-500.0,0.00022191,2]
[344379111,1733393444864,-500.0,0.00022191,2]
[344379112,1733393444876,-500.0,0.00022191,2]
[344379113,1733393444887,-500.0,0.00022191,2]
[344379114,1733393444897,-500.0,0.00022191,2]
[344379115,1733393444909,-500.0,0.00022191,2]
[344379116,1733393444919,-500.0,0.00022191,2]
[344379117,1733393444930,-500.0,0.00022191,2]
[344379118,1733393444940,-500.0,0.00022191,2]
[344379119,1733393444952,-500.0,0.00022191,2]
[344379120,1733393444963,-500.0,0.00022191,2]
[344379121,1733393444974,-500.0,0.00022191,2]
[344379122,1733393444985,-659.28,0.00022191,2]
[344379123,1733393444995,-500.0,0.00022191,2]
[344379124,1733393445006,-500.0,0.00022191,2]
[344379125,1733393445018,-500.0,0.00022191,2]
[344379126,1733393445028,-500.0,0.00022191,2]
[344379127,1733393445039,-400.0,0.00022329,2]
[344379128,1733393445053,-500.0,0.00022465,2]
[344379129,1733393445063,-500.0,0.00022465,2]
[344379130,1733393445074,-634.0,0.00022465,2]
[344379131,1733393445084,-500.0,0.00022465,2]
[344379132,1733393445095,-500.0,0.00022465,2]
[344379133,1733393445105,-500.0,0.00022465,2]
[344379134,1733393445116,-506.64302431,0.00022465,2]
[344379135,1733393445128,-500.0,0.00022465,2]
[344379136,1733393445138,-500.0,0.00022465,2]
[344379137,1733393445147,-500.0,0.00022465,2]
[344379138,1733393445158,-696.01,0.00022465,2]
[344379139,1733393445169,-569.36,0.00022465,2]
[344379140,1733393445180,-481.66000437,0.00022465,2]
[344379141,1733393445191,-633.54,0.00022465,2]
[344379142,1733393445202,-500.0,0.00022465,2]
[344379143,1733393445214,-500.0,0.00022465,2]
[344379144,1733393445224,-500.0,0.00022465,2]
[344379145,1733393445235,-500.0,0.00022465,2]
[344379146,1733393445246,-500.0,0.00022465,2]
[344379147,1733393445257,-500.0,0.00022465,2]
[344379148,1733393445268,-500.0,0.00022465,2]
[344379149,1733393445280,-500.0,0.00022465,2]
[344379150,1733393445291,-500.0,0.00022465,2]
[344379151,1733393445303,-500.0,0.00022465,2]
[344379152,1733393445315,-500.0,0.00022465,2]
[344379153,1733393445326,-2855.73,0.00022465,2]
[344379154,1733393445336,-500.0,0.00022465,2]
[344379155,1733393445346,-500.0,0.00022465,2]
[344379156,1733393445356,-500.0,0.00022465,2]
[344379157,1733393445367,-200.95201779,0.00022465,2]
[344379158,1733393445376,-1008.88,0.00022465,2]
[344379159,1733393445386,-500.0,0.00022465,2]
[344379160,1733393445396,-390.17,0.00022465,2]
[344379161,1733393445405,-500.0,0.00022465,2]
[344379162,1733393445415,-500.0,0.00022465,2]
[344379163,1733393445426,-500.0,0.00022465,2]
[344379164,1733393445437,-500.0,0.00022465,2]
[344379165,1733393445447,-458.36737476,0.00022465,2]
[344379166,1733393445459,-500.0,0.00022465,2]
[344379167,1733393445470,-500.0,0.00022465,2]
[344379168,1733393445481,-500.0,0.00022465,2]
[344379169,1733393445491,-500.0,0.00022465,2]
[344379170,1733393445501,-345.53477091,0.00022465,2]
[344379171,1733393445510,-659.28,0.00022465,2]
[344379172,1733393445520,-500.0,0.00022465,2]
[344379173,1733393445531,-500.0,0.00022465,2]
[344379174,1733393445542,-500.0,0.00022465,2]
[344379175,1733393445552,-500.0,0.00022465,2]
[344379176,1733393445562,-500.0,0.00022739,2]
[344379177,1733393445572,-404.6723063,0.00022739,2]
[344379178,1733393445584,-500.0,0.00022739,2]
[344379179,1733393445595,-500.0,0.00022739,2]
[344379180,1733393445605,-500.0,0.00022739,2]
[344379181,1733393445614,-500.0,0.00022739,2]
[344379182,1733393445624,-500.0,0.00022739,2]
[344379183,1733393445634,-500.0,0.00022739,2]
[344379184,1733393445643,-696.01,0.00022739,2]
[344379185,1733393445653,-569.36,0.00022739,2]
[344379186,1733393445664,-633.54,0.00022739,2]
[344379187,1733393445674,-638.12104473,0.00022739,2]
[344379188,1733393445684,-568.77451395,0.00022739,2]
[344379189,1733393445694,-399.66220362,0.00022739,2]
[344379190,1733393445705,-500.0,0.00022739,2]
[344379191,1733393445715,-500.0,0.00022739,2]
[344379192,1733393445725,-500.0,0.00022739,2]
[344379193,1733393445735,-500.0,0.00022739,2]
[344379194,1733393445745,-500.0,0.00022739,2]
[344379195,1733393445756,-500.0,0.00022739,2]
[344379196,1733393445767,-500.0,0.00022739,2]
[344379197,1733393445778,-500.0,0.00022739,2]
[344379198,1733393445788,-2855.73,0.00022739,2]
[344379199,1733393445798,-500.0,0.00022739,2]
[344379200,1733393445809,-500.0,0.00022739,2]
[344379201,1733393445819,-500.0,0.00022739,2]
[344379202,1733393445830,-1008.88,0.00022739,2]
[344379203,1733393445840,-500.0,0.00022739,2]
[344379204,1733393445850,-500.0,0.00022739,2]
[344379205,1733393445860,-193.85825402,0.00022739,2]
[344379206,1733393445870,-500.0,0.00022739,2]
[344379207,1733393445880,-500.0,0.00022739,2]
[344379208,1733393445890,-500.0,0.00022739,2]
[344379209,1733393445900,-500.0,0.00022739,2]
[344379210,1733393445911,-500.0,0.00022739,2]
[344379211,1733393445922,-500.0,0.00022739,2]
[344379212,1733393445933,-659.28,0.00022739,2]
[344379213,1733393445943,-500.0,0.00022739,2]
[344379214,1733393445952,-500.0,0.00022739,2]
[344379215,1733393445963,-500.0,0.00022739,2]
[344379216,1733393445973,-500.0,0.00022739,2]
[344379217,1733393445983,-500.0,0.0002275,2]
[344379218,1733393445994,-150.0,0.00022866,2]
[344379219,1733393446004,-532.0,0.00022866,2]
[344379220,1733393446015,-2374.0,0.00022866,2]
[344379221,1733393446027,-2170.0,0.00022866,2]
[344379222,1733393446038,-150.0,0.00023,2]
[344379223,1733393446049,-236.20263784,0.00023012,2]
[344379224,1733393446061,-500.0,0.00023013,2]
[344379225,1733393446071,-631.77,0.00023013,2]
[344379226,1733393446081,-500.0,0.00023013,2]
[344379227,1733393446093,-273.8688444,0.00023013,2]
[344379228,1733393446103,-500.0,0.00023013,2]
[344379229,1733393446113,-432.89468482,0.00023013,2]
[344379230,1733393446125,-500.0,0.00023013,2]
[344379231,1733393446135,-696.01,0.00023013,2]
[344379232,1733393446146,-569.36,0.00023013,2]
[344379234,1733393446158,-633.54,0.00023013,2]
[344379236,1733393446168,-500.0,0.00023013,2]
[344379237,1733393446178,-500.0,0.00023013,2]
[344379238,1733393446188,-500.0,0.00023013,2]
[344379239,1733393446199,-500.0,0.00023013,2]
[344379240,1733393446209,-500.0,0.00023013,2]
[344379241,1733393446220,-509.65007739,0.00023013,2]
[344379242,1733393446230,-610.84421314,0.00023013,2]
[344379245,1733393446391,-500.0,0.00023013,2]
[344379246,1733393446402,-2855.73,0.00023013,2]
[344379247,1733393446411,-500.0,0.00023013,2]
[344379249,1733393446421,-533.78,0.00023013,2]
[344379250,1733393446430,-500.0,0.00023013,2]
[344379251,1733393446439,-1008.88,0.00023013,2]
[344379252,1733393446449,-500.0,0.00023013,2]
[344379253,1733393446459,-500.0,0.00023013,2]
[344379254,1733393446468,-500.0,0.00023013,2]
[344379256,1733393446477,-500.0,0.00023013,2]
[344379257,1733393446487,-500.0,0.00023013,2]
[344379258,1733393446497,-500.0,0.00023013,2]
[344379259,1733393446506,-500.0,0.00023013,2]
[344379260,1733393446516,-500.0,0.00023013,2]
[344379261,1733393446527,-659.28,0.00023013,2]
[344379262,1733393446536,-500.0,0.00023013,2]
[344379263,1733393446546,-500.0,0.00023013,2]
[344379264,1733393446556,-500.0,0.00023013,2]
[344379265,1733393446566,-500.0,0.00023013,2]
[344379266,1733393446576,-924.55197288,0.00023084,2]
[344379267,1733393446585,-400.0,0.00023098,2]
[344379268,1733393446594,-500.0,0.00023287,2]
[344379269,1733393446603,-166.18470547,0.00023287,2]
[344379270,1733393446613,-500.0,0.00023287,2]
[344379271,1733393446623,-696.01,0.00023287,2]
[344379272,1733393446633,-569.36,0.00023287,2]
[344379273,1733393446643,-633.54,0.00023287,2]
[344379274,1733393446652,-500.0,0.00023287,2]
[344379275,1733393446662,-500.0,0.00023287,2]
[344379276,1733393446671,-500.0,0.00023287,2]
[344379277,1733393446680,-500.0,0.00023287,2]
[344379278,1733393446690,-500.0,0.00023287,2]
[344379279,1733393446699,-500.0,0.00023287,2]
[344379280,1733393446709,-2855.73,0.00023287,2]
[344379281,1733393446719,-500.0,0.00023287,2]
[344379282,1733393446728,-500.0,0.00023287,2]
[344379283,1733393446738,-1008.88,0.00023287,2]
[344379284,1733393446747,-500.0,0.00023287,2]
[344379285,1733393446756,-500.0,0.00023287,2]
[344379286,1733393446765,-500.0,0.00023287,2]
[344379287,1733393446774,-500.0,0.00023287,2]
[344379288,1733393446784,-500.0,0.00023287,2]
[344379289,1733393446793,-500.0,0.00023287,2]
[344379290,1733393446803,-500.0,0.00023287,2]
[344379291,1733393446812,-500.0,0.00023287,2]
[344379292,1733393446822,-659.28,0.00023287,2]
[344379293,1733393446832,-500.0,0.00023287,2]
[344379294,1733393446842,-500.0,0.00023287,2]
[344379295,1733393446851,-500.0,0.00023287,2]
[344379296,1733393446860,-500.0,0.00023287,2]
[344379297,1733393446869,-1000.0,0.00023298,2]
[344379298,1733393446879,-631.3897099,0.00023561,2]
[344379299,1733393446889,-314.234,0.00023561,4]
[344379300,1733393446898,-500.0,0.00023561,2]
[344379301,1733393446907,-696.01,0.00023561,2]
[344379302,1733393446917,-569.36,0.00023561,2]
[344379303,1733393446926,-633.54,0.00023561,2]
[344379304,1733393446936,-500.0,0.00023561,2]
[344379305,1733393446945,-500.0,0.00023561,2]
[344379307,1733393446954,-500.0,0.00023561,2]
[344379309,1733393446964,-500.0,0.00023561,2]
[344379310,1733393446973,-500.0,0.00023561,2]
[344379312,1733393446984,-2855.73,0.00023561,2]
[344379314,1733393446993,-473.17677797,0.00023561,2]
[344379316,1733393447003,-500.0,0.00023561,2]
[344379317,1733393447013,-1008.88,0.00023561,2]
[344379318,1733393447024,-500.0,0.00023561,2]
[344379319,1733393447034,-500.0,0.00023561,2]
[344379320,1733393447044,-500.0,0.00023561,2]
[344379321,1733393447055,-500.0,0.00023561,2]
[344379322,1733393447065,-500.0,0.00023561,2]
[344379323,1733393447074,-500.0,0.00023561,2]
[344379324,1733393447083,-500.0,0.00023561,2]
[344379325,1733393447093,-500.0,0.00023561,2]
[344379326,1733393447103,-659.28,0.00023561,2]
[344379327,1733393447112,-500.0,0.00023561,2]
[344379328,1733393447124,-2.33931071,0.00023561,2]
[344379329,1733393447140,-497.66068929,0.00023561,2]
[344379330,1733393447150,-500.0,0.00023561,2]
[344379331,1733393447159,-500.0,0.00023561,2]
[344379332,1733393447169,-224.729,0.0002377,2]
[344379333,1733393447179,-500.0,0.00023835,2]
[344379334,1733393447188,-696.01,0.00023835,2]
[344379335,1733393447197,-249.44881317,0.00023835,2]
[344379336,1733393447371,-319.91118683,0.00023835,2]
[344379337,1733393447380,-530.47881317,0.00023835,2]
[344379338,1733393996997,192.541265,0.00013973,2]
[344379341,1733394211189,2290.02,0.0001761,2]
[344379342,1733394381801,200.0,0.00027,30]
[344379344,1733394443027,500.0,0.00026,120]
[344379345,1733394444183,500.0,0.00026,120]
[344379346,1733394445121,500.0,0.00026,120]
[344379347,1733394445896,500.0,0.00026,120]
[344379348,1733394446665,500.0,0.00026,120]
[344379349,1733394447432,302.18,0.00026,120]
[344379399,1733394639303,-300.0,0.00019999,2]
[344379400,1733394639313,-300.0,0.00019999,2]
[344379401,1733394639322,-16229.62083333,0.0002,2]
[344379402,1733394639365,-2138.79883407,0.0002,2]
[344379404,1733394639379,-4082.78405863,0.0002,2]
[344379430,1733394639913,-293.47199999,0.0002,2]
[344379446,1733394643407,-1609.23957338,0.0002,2]
[344379447,1733394643418,-192.541265,0.00020447,2]
[344379448,1733394643427,-3255.9560673,0.00020776,2]
[344379449,1733394643436,-400.0,0.00020918,2]
[344379450,1733394643446,-10882.5845907,0.00021166,2]
[344379451,1733394643455,-400.0,0.00021692,2]
[344379452,1733394643467,-420.0,0.00021777,2]
[344379454,1733394643476,-1000.0,0.00021917,10]
[344379455,1733394643485,-500.0,0.00021917,2]
[344379456,1733394643494,-500.0,0.00021917,2]
[344379457,1733394643503,-500.0,0.00021917,2]
[344379458,1733394643512,-500.0,0.00021917,2]
[344379459,1733394643521,-500.0,0.00021917,2]
[344379460,1733394643530,-500.0,0.00021917,2]
[344379461,1733394643540,-500.0,0.00021917,2]
[344379462,1733394643549,-471.64122866,0.00021917,2]
[344379463,1733394643558,-459.98786268,0.00021917,2]
[344379464,1733394643568,-500.0,0.00021917,2]
[344379465,1733394643700,-2022.81,0.00021917,2]
[344379466,1733394643710,-500.0,0.00021917,2]
[344379467,1733394643719,-714.62,0.00021917,2]
[344379468,1733394643729,-500.0,0.00021917,2]
[344379469,1733394643737,-500.0,0.00021917,2]
[344379470,1733394643747,-604.12405637,0.00021917,2]
[344379471,1733394643756,-301.49,0.00021917,2]
[344379472,1733394643765,-500.0,0.00021917,2]
[344379473,1733394643775,-500.0,0.00021917,2]
[344379474,1733394643785,-500.0,0.00021917,2]
[344379475,1733394643794,-376.92,0.00021917,2]
[344379476,1733394643803,-500.0,0.00021917,2]
[344379477,1733394643813,-500.0,0.00021917,2]
[344379478,1733394643822,-500.0,0.00021917,2]
[344379479,1733394643831,-500.0,0.00021917,2]
[344379480,1733394643841,-500.0,0.00021997,2]
[344379481,1733394643851,-500.0,0.00021997,2]
[344379482,1733394643863,-621.38492784,0.00021997,2]
[344379483,1733394643872,-420.0,0.00021999,2]
[344379484,1733394643881,-500.000001,0.00022188,2]
[344379485,1733394643891,-1000.0,0.00022191,10]
[344379486,1733394643900,-500.0,0.00022191,2]
[344379487,1733394643909,-511.71328693,0.00022191,2]
[344379488,1733394643919,-394.92422242,0.00022191,2]
[344379489,1733394643928,-500.0,0.00022191,2]
[344379490,1733394643938,-500.0,0.00022191,2]
[344379491,1733394643947,-500.0,0.00022191,2]
[344379492,1733394643956,-500.0,0.00022191,2]
[344379493,1733394643966,-500.0,0.00022191,2]
[344379494,1733394643987,-2022.81,0.00022191,2]
[344379495,1733394643997,-500.0,0.00022191,2]
[344379496,1733394644007,-714.62,0.00022191,2]
[344379497,1733394644016,-500.0,0.00022191,2]
[344379498,1733394644026,-500.0,0.00022191,2]
[344379499,1733394644036,-500.0,0.00022191,2]
[344379500,1733394644046,-500.0,0.00022191,2]
[344379501,1733394644057,-500.0,0.00022191,2]
[344379502,1733394644067,-500.0,0.00022191,2]
[344379503,1733394644078,-324.38729846,0.00022191,2]
[344379504,1733394644088,-500.0,0.00022191,2]
[344379505,1733394644098,-500.0,0.00022191,2]
[344379506,1733394644110,-1000.0,0.00022465,10]
[344379507,1733394644121,-500.0,0.00022465,2]
[344379508,1733394644131,-500.0,0.00022465,2]
[344379509,1733394644141,-500.0,0.00022465,2]
[344379510,1733394644152,-500.0,0.00022465,2]
[344379511,1733394644163,-500.0,0.00022465,2]
[344379512,1733394644173,-500.0,0.00022465,2]
[344379513,1733394644183,-2022.81,0.00022465,2]
[344379514,1733394644195,-500.0,0.00022465,2]
[344379515,1733394644205,-714.62,0.00022465,2]
[344379516,1733394644214,-500.0,0.00022465,2]
[344379517,1733394644224,-150.69157206,0.00022465,2]
[344379518,1733394644234,-500.0,0.00022465,2]
[344379519,1733394644243,-500.0,0.00022465,2]
[344379520,1733394644253,-500.0,0.00022465,2]
[344379521,1733394644264,-500.0,0.00022465,2]
[344379522,1733394644274,-500.0,0.00022465,2]
[344379523,1733394644284,-500.0,0.00022465,2]
[344379524,1733394644294,-400.0,0.00022466,2]
[344379525,1733394644304,-350.8841143,0.00022485,2]
[344379526,1733394644313,-809.8841143,0.00022485,2]
[344379527,1733394644323,-350.8841143,0.00022485,2]
[344379528,1733394644332,-350.8841143,0.00022485,2]
[344379529,1733394644342,-350.8841143,0.00022485,2]
[344379530,1733394644353,-1000.0,0.00022739,10]
[344379531,1733394644365,-500.0,0.00022739,2]
[344379532,1733394644375,-500.0,0.00022739,2]
[344379533,1733394644388,-500.0,0.00022739,2]
[344379534,1733394644398,-500.0,0.00022739,2]
[344379535,1733394644408,-500.0,0.00022739,2]
[344379536,1733394644418,-500.0,0.00022739,2]
[344379537,1733394644428,-2022.81,0.00022739,2]
[344379538,1733394644438,-500.0,0.00022739,2]
[344379539,1733394644448,-714.62,0.00022739,2]
[344379540,1733394644459,-500.0,0.00022739,2]
[344379541,1733394644470,-500.0,0.00022739,2]
[344379542,1733394644479,-189.12,0.00022739,2]
[344379543,1733394644489,-500.0,0.00022739,2]
[344379544,1733394644498,-500.0,0.00022739,2]
[344379545,1733394644508,-218.13196043,0.00022739,2]
[344379546,1733394644517,-500.0,0.00022739,2]
[344379547,1733394644526,-1000.0,0.00023013,10]
[344379548,1733394644535,-500.0,0.00023013,2]
[344379549,1733394644546,-500.0,0.00023013,2]
[344379550,1733394644556,-500.0,0.00023013,2]
[344379551,1733394644568,-500.0,0.00023013,2]
[344379552,1733394644578,-500.0,0.00023013,2]
[344379553,1733394644588,-500.0,0.00023013,2]
[344379554,1733394644598,-2022.81,0.00023013,2]
[344379555,1733394644610,-500.0,0.00023013,2]
[344379556,1733394644620,-714.62,0.00023013,2]
[344379557,1733394644630,-500.0,0.00023013,2]
[344379558,1733394644640,-500.0,0.00023013,2]
[344379559,1733394644650,-500.0,0.00023013,2]
[344379560,1733394644660,-500.0,0.00023013,2]
[344379561,1733394644669,-500.0,0.00023013,2]
[344379562,1733394644679,-400.0,0.0002324,2]
[344379563,1733394644690,-1000.0,0.00023287,10]
[344379564,1733394644700,-500.0,0.00023287,2]
[344379565,1733394644710,-500.0,0.00023287,2]
[344379566,1733394644720,-500.0,0.00023287,2]
[344379567,1733394644730,-500.0,0.00023287,2]
[344379568,1733394644740,-500.0,0.00023287,2]
[344379569,1733394644750,-500.0,0.00023287,2]
[344379570,1733394644760,-2022.81,0.00023287,2]
[344379571,1733394644770,-500.0,0.00023287,2]
[344379572,1733394644780,-714.62,0.00023287,2]
[344379573,1733394644790,-238.42957286,0.00023287,2]
[344379574,1733394644801,-312.59,0.00023287,2]
[344379575,1733394644811,-500.0,0.00023287,2]
[344379576,1733394644821,-500.0,0.00023287,2]
[344379577,1733394644831,-500.0,0.00023287,2]
[344379578,1733394644841,-350.8841143,0.00023444,2]
[344379579,1733394644851,-350.8841143,0.00023444,2]
[344379580,1733394644862,-350.8841143,0.00023444,2]
[344379581,1733394644872,-350.8841143,0.00023444,2]
[344379582,1733394644882,-350.8841143,0.00023444,2]
[344379583,1733394644891,-350.8841143,0.00023444,2]
[344379584,1733394644901,-350.8841143,0.00023444,2]
[344379585,1733394644911,-350.8841143,0.00023444,2]
[344379586,1733394644920,-350.8841143,0.00023444,2]
[344379587,1733394644930,-350.8841143,0.00023444,2]
[344379588,1733394644939,-350.8841143,0.00023444,2]
[344379589,1733394644949,-350.8841143,0.00023444,2]
[344379590,1733394644959,-350.8841143,0.00023444,2]
[344379591,1733394644969,-350.8841143,0.00023444,2]
[344379592,1733394644978,-350.8841143,0.00023444,2]
[344379593,1733394644987,-350.8841143,0.00023444,2]
[344379594,1733394644996,-350.8841143,0.00023444,2]
[344379595,1733394645006,-350.8841143,0.00023444,2]
[344379596,1733394645015,-350.8841143,0.00023444,2]
[344379597,1733394645024,-350.8841143,0.00023444,2]
[344379598,1733394645034,-567.1158857,0.00023444,2]
[344379599,1733394645043,-290.4819851,0.00023541,2]
[344379600,1733394645053,-1000.0,0.00023561,10]
[344379601,1733394645062,-297.99,0.00023561,4]
[344379602,1733394645072,-500.0,0.00023561,2]
[344379603,1733394645081,-500.0,0.00023561,2]
[344379604,1733394645090,-500.0,0.00023561,2]
[344379605,1733394645100,-500.0,0.00023561,2]
[344379606,1733394645111,-500.0,0.00023561,2]
[344379607,1733394645120,-581.85047009,0.00023561,2]
[344379608,1733394645130,-2022.81,0.00023561,2]
[344379609,1733394645139,-500.0,0.00023561,2]
[344379610,1733394645149,-714.62,0.00023561,2]
[344379611,1733394645159,-500.0,0.00023561,2]
[344379612,1733394645169,-500.0,0.00023561,2]
[344379613,1733394645179,-500.0,0.00023561,2]
[344379614,1733394645189,-587.0,0.00023712,2]
[344379615,1733394645199,-1000.0,0.00023835,10]
[344379616,1733394645208,-500.0,0.00023835,2]
[344379617,1733394645217,-500.0,0.00023835,2]
[344379618,1733394645227,-500.0,0.00023835,2]
[344379619,1733394645236,-500.0,0.00023835,2]
[344379620,1733394645245,-500.0,0.00023835,2]
[344379621,1733394645255,-2022.81,0.00023835,2]
[344379622,1733394645264,-500.0,0.00023835,2]
[344379623,1733394645273,-714.62,0.00023835,2]
[344379624,1733394645284,-500.0,0.00023835,2]
[344379625,1733394645293,-500.0,0.00023835,2]
[344379627,1733394645303,-500.0,0.00023835,2]
[344379628,1733394645312,-532.0,0.00023852,2]
[344379629,1733394645322,-2374.0,0.00023852,2]
[344379631,1733394645334,-2170.0,0.00023852,2]
[344379632,1733394645343,-155.02957946,0.00023857,2]
[344379634,1733394645353,-150.0,0.00024,2]
[344379635,1733394645364,-400.0,0.00024014,2]
[344379637,1733394645374,-1000.0,0.00024109,10]
[344379639,1733394645389,-500.0,0.00024109,2]
[344379640,1733394645398,-500.0,0.00024109,2]
[344379641,1733394645408,-500.0,0.00024109,2]
[344379642,1733394645417,-500.0,0.00024109,2]
[344379643,1733394645428,-500.0,0.00024109,2]
[344379644,1733394645438,-2022.81,0.00024109,2]
[344379645,1733394645448,-500.0,0.00024109,2]
[344379646,1733394645457,-714.62,0.00024109,2]
[344379647,1733394645466,-500.0,0.00024109,2]
[344379648,1733394645476,-500.0,0.00024109,2]
[344379649,1733394645485,-500.0,0.00024109,2]
[344379650,1733394645495,-587.0,0.00024199,2]
[344379651,1733394645509,-1000.0,0.00024383,10]
[344379652,1733394645519,-500.0,0.00024383,2]
[344379653,1733394645528,-500.0,0.00024383,2]
[344379654,1733394645538,-500.0,0.00024383,2]
[344379656,1733394645547,-500.0,0.00024383,2]
[344379658,1733394645557,-500.0,0.00024383,2]
[344379659,1733394645567,-2022.81,0.00024383,2]
[344379660,1733394645576,-480.70716204,0.00024383,2]
[344379661,1733394645585,-714.62,0.00024383,2]
[344379662,1733394645595,-500.0,0.00024383,2]
[344379663,1733394645605,-500.0,0.00024383,2]
[344379664,1733394645622,-500.0,0.00024383,2]
[344379665,1733394645631,-165.34184648,0.00024656,2]
[344379666,1733394645640,-500.0,0.00024657,2]
[344379667,1733394645650,-500.0,0.00024657,2]
[344379668,1733394645659,-500.0,0.00024657,2]
[344379669,1733394645668,-500.0,0.00024657,2]
[344379671,1733394645678,-500.0,0.00024657,2]
[344379673,1733394645688,-2022.81,0.00024657,2]
[344379674,1733394645697,-714.62,0.00024657,2]
[344379675,1733394645705,-500.0,0.00024657,2]
[344379676,1733394645715,-500.0,0.00024657,2]
[344379677,1733394645724,-500.0,0.00024657,2]
[344379678,1733394645733,-954.325985,0.00024658,4]
[344379679,1733394645743,-306.0,0.0002474,2]
[344379680,1733394645752,-153.0,0.0002474,2]
[344379681,1733394645761,-153.0,0.0002474,2]
[344379682,1733394645770,-213.2496734,0.0002474,2]
[344379683,1733394645780,-153.0,0.0002474,2]
[344379684,1733394645790,-213.2496734,0.0002474,2]
[344379685,1733394645799,-153.0,0.0002474,2]
[344379686,1733394645808,-213.2496734,0.0002474,2]
[344379687,1733394645817,-153.0,0.0002474,2]
[344379688,1733394645827,-153.0,0.0002474,2]
[344379689,1733394645836,-350.8841143,0.00024786,2]
[344379690,1733394645845,-350.8841143,0.00024786,2]
[344379691,1733394645854,-720.1158857,0.00024786,2]